bitfinex/quotes_SOLUSD_20241110
["timestamp","ask_amount","ask_price","bid_price","bid_amount"]
[1731217176635,32.62980234,207.49,207.43,32.62980234]
[1731217176636,32.62980234,207.5,207.45,4.81]
[1731217176961,32.62980234,207.52,207.45,4.81]
[1731217177141,32.62980234,207.52,207.45,37.53980234]
[1731217177335,32.62980234,207.58,207.51,37.53980234]
[1731217177661,32.62980234,207.54,207.51,4.81]
[1731217178035,0.1,207.57,207.52,4.81]
[1731217178436,0.1,207.57,207.47,0.1]
[1731217178638,32.62980234,207.53,207.49,0.1]
[1731217178847,32.62980234,207.53,207.47,0.1]
[1731217179450,32.62980234,207.48,207.42,4.81]
[1731217179655,32.62980234,207.46,207.42,4.81]
[1731217180359,32.62980234,207.45,207.42,4.81]
[1731217180658,32.62980234,207.46,207.41,4.91]
[1731217180839,32.62980234,207.45,207.41,4.91]
[1731217181039,32.62980234,207.42,207.41,4.81]
[1731217181360,32.62980234,207.44,207.39,0.1]
[1731217183254,32.62980234,207.43,207.37,4.81]
[1731217183459,32.62980234,207.4,207.35,0.1]
[1731217183946,32.62980234,207.44,207.39,0.1]
[1731217184253,32.62980234,207.44,207.37,4.91]
[1731217184460,32.62980234,207.43,207.37,4.91]
[1731217184642,32.62980234,207.42,207.38,4.81]
[1731217184851,32.62980234,207.42,207.37,0.1]
[1731217185440,32.62980234,207.42,207.36,4.81]
[1731217185752,32.62980234,207.41,207.36,4.81]
[1731217185958,32.62980234,207.41,207.35,4.91]
[1731217186760,32.62980234,207.45,207.38,0.1]
[1731217187541,32.62980234,207.41,207.36,0.1]
[1731217188146,32.62980234,207.41,207.34,32.72980234]
[1731217189558,32.62980234,207.42,207.34,32.72980234]
[1731217189851,32.62980234,207.41,207.34,0.1]
[1731217190052,32.62980234,207.42,207.36,0.1]
[1731217190363,3.63600015,207.41,207.36,0.1]
[1731217190541,32.62980234,207.42,207.36,0.1]
[1731217191055,32.62980234,207.45,207.4,0.1]
[1731217191262,32.62980234,207.47,207.4,0.1]
[1731217191652,32.62980234,207.46,207.4,0.1]
[1731217191856,6.3745,207.54,207.44,0.1]
[1731217192168,32.62980234,207.53,207.45,32.62980234]
[1731217192467,0.1,207.53,207.43,0.1]
[1731217192666,32.62980234,207.5,207.43,0.1]
[1731217192851,32.62980234,207.5,207.45,0.1]
[1731217193053,32.62980234,207.51,207.45,0.1]
[1731217193866,32.62980234,207.53,207.47,0.1]
[1731217194070,6.3745,207.54,207.47,0.1]
[1731217194071,32.62980234,207.54,207.49,0.1]
[1731217194272,32.62980234,207.51,207.47,0.1]
[1731217194446,32.62980234,207.51,207.45,0.1]
[1731217194859,32.62980234,207.49,207.45,0.1]
[1731217195669,32.62980234,207.48,207.45,0.1]
[1731217196072,32.62980234,207.47,207.45,0.1]
[1731217196773,32.62980234,207.49,207.45,0.1]
[1731217197568,32.62980234,207.47,207.42,4.91]
[1731217197875,32.62980234,207.47,207.42,4.81]
[1731217198267,32.62980234,207.47,207.42,4.91]
[1731217198652,32.62980234,207.47,207.4,0.1]
[1731217199458,32.62980234,207.45,207.4,0.1]
[1731217199775,32.62980234,207.45,207.38,4.009998]
[1731217200759,32.62980234,207.47,207.4,4.009998]
[1731217202477,32.62980234,207.46,207.4,4.009998]
[1731217202666,32.62980234,207.47,207.4,4.009998]
[1731217203058,6.1152,207.48,207.4,4.009998]
[1731217203059,32.62980234,207.46,207.4,4.009998]
[1731217203872,32.62980234,207.47,207.4,4.009998]
[1731217204057,32.62980234,207.5,207.43,36.63980034]
[1731217204461,32.62980234,207.52,207.46,4.81]
[1731217204669,12.59768105,207.51,207.46,37.43980234]
[1731217204882,38.87310234,207.54,207.46,37.43980234]
[1731217205179,32.62980234,207.52,207.46,4.81]
[1731217205961,32.62980234,207.53,207.46,4.81]
[1731217206157,32.62980234,207.52,207.46,4.81]
[1731217206361,32.62980234,207.51,207.47,4.81]
[1731217206575,0.1,207.59,207.47,4.81]
[1731217206576,32.62980234,207.52,207.47,4.81]
[1731217206970,32.62980234,207.48,207.37,16.1686]
[1731217207162,32.62980234,207.45,207.39,4.81]
[1731217207563,32.62980234,207.5,207.39,4.81]
[1731217207564,32.62980234,207.43,207.39,4.81]
[1731217208075,32.62980234,207.45,207.38,37.43980234]
[1731217208266,32.62980234,207.45,207.38,4.81]
[1731217208461,6.2433,207.49,207.41,37.43980234]
[1731217208676,32.62980234,207.48,207.41,4.81]
[1731217209482,11.29743613,207.47,207.4,4.81]
[1731217209666,32.62980234,207.48,207.4,4.81]
[1731217209865,32.62980234,207.48,207.38,4.97409115]
[1731217209866,32.62980234,207.48,207.42,4.81]
[1731217210672,32.62980234,207.5,207.44,4.81]
[1731217210969,32.62980234,207.52,207.44,4.81]
[1731217212474,32.62980234,207.52,207.43,32.62980234]
[1731217212672,32.62980234,207.5,207.41,32.62980234]
[1731217213180,0.1,207.59,207.38,4.97409115]
[1731217213181,32.62980234,207.47,207.4,32.62980234]
[1731217214078,32.62980234,207.49,207.41,32.62980234]
[1731217214274,32.62980234,207.49,207.42,32.62980234]
[1731217214877,32.62980234,207.46,207.39,32.62980234]
[1731217215075,32.62980234,207.44,207.37,32.62980234]
[1731217215262,32.62980234,207.45,207.37,32.62980234]
[1731217215876,32.62980234,207.45,207.38,32.62980234]
[1731217217788,32.62980234,207.43,207.36,37.43980234]
[1731217218981,32.62980234,207.43,207.35,32.62980234]
[1731217219381,0.1,207.49,207.35,32.62980234]
[1731217219382,32.62980234,207.42,207.35,32.62980234]
[1731217219582,32.62980234,207.41,207.34,37.60389349]
[1731217220080,32.62980234,207.42,207.35,32.62980234]
[1731217220390,32.62980234,207.39,207.34,4.97409115]
[1731217220693,32.62980234,207.38,207.31,4.81]
[1731217220876,32.62980234,207.39,207.31,37.43980234]
[1731217221496,32.62980234,207.38,207.31,37.43980234]
[1731217222174,32.62980234,207.37,207.31,4.81]
[1731217222370,32.62980234,207.37,207.31,7.86857144]
[1731217223166,32.62980234,207.38,207.31,40.49837378]
[1731217223499,32.62980234,207.39,207.31,40.49837378]
[1731217223670,32.62980234,207.4,207.33,37.43980234]
[1731217224001,32.62980234,207.38,207.33,4.81]
[1731217224468,32.62980234,207.35,207.28,37.60389349]
[1731217224667,32.62980234,207.29,207.17,15.0386]
[1731217224872,32.62980234,207.26,207.18,32.62980234]
[1731217225091,4.74770236,207.38,207.2,32.72980234]
[1731217225387,32.62980234,207.42,207.33,32.62980234]
[1731217225604,32.62980234,207.44,207.35,32.62980234]
[1731217225881,32.62980234,207.42,207.33,32.62980234]
[1731217226266,32.62980234,207.44,207.35,32.62980234]
[1731217226471,6.6576,207.46,207.28,5.92742448]
[1731217226472,32.62980234,207.42,207.33,32.62980234]
[1731217226889,32.72980234,207.42,207.33,32.62980234]
[1731217227092,32.62980234,207.42,207.31,32.62980234]
[1731217227291,32.62980234,207.4,207.31,32.62980234]
[1731217227790,32.62980234,207.4,207.29,32.62980234]
[1731217227995,32.62980234,207.38,207.29,32.62980234]
[1731217228800,0.67500001,207.37,207.29,32.62980234]
[1731217228967,32.62980234,207.38,207.29,32.62980234]
[1731217229371,32.62980234,207.47,207.36,32.62980234]
[1731217229590,32.62980234,207.47,207.38,32.62980234]
[1731217230690,32.62980234,207.45,207.36,32.62980234]
[1731217231480,32.62980234,207.41,207.32,32.62980234]
[1731217232291,32.62980234,207.43,207.34,32.62980234]
[1731217232474,6.7576,207.46,207.3,13.18822292]
[1731217232475,32.62980234,207.45,207.36,32.62980234]
[1731217233496,32.62980234,207.43,207.34,32.62980234]
[1731217233787,32.62980234,207.41,207.32,32.62980234]
[1731217235199,32.62980234,207.39,207.32,32.62980234]
[1731217235696,32.62980234,207.43,207.34,32.62980234]
[1731217235878,32.62980234,207.43,207.34,39.89060078]
[1731217237298,32.62980234,207.45,207.36,32.62980234]
[1731217237498,6.6576,207.46,207.39,32.62980234]
[1731217240084,6.6576,207.46,207.41,32.62980234]
[1731217240598,11.03200887,207.45,207.43,32.62980234]
[1731217240831,6.6576,207.46,207.43,32.62980234]
[1731217241304,6.6576,207.46,207.41,32.62980234]
[1731217241903,39.28740234,207.46,207.37,32.62980234]
[1731217242108,39.28740234,207.46,207.39,32.62980234]
[1731217242281,6.6576,207.46,207.39,32.62980234]
[1731217242483,6.6576,207.46,207.41,32.62980234]
[1731217243398,6.6576,207.46,207.33,14.7407]
[1731217243399,6.6576,207.46,207.43,32.62980234]
[1731217245402,54.81520234,207.5,207.43,32.62980234]
[1731217245602,54.81520234,207.5,207.41,32.62980234]
[1731217247683,22.1854,207.5,207.45,32.62980234]
[1731217248094,22.6377,207.55,207.47,32.62980234]
[1731217249079,55.26750234,207.55,207.47,32.62980234]
[1731217249282,32.62980234,207.54,207.47,32.62980234]
[1731217249492,32.62980234,207.53,207.45,32.62980234]
[1731217249696,32.62980234,207.54,207.46,32.62980234]
[1731217250104,55.26750234,207.55,207.47,32.62980234]
[1731217250985,32.62980234,207.54,207.47,32.62980234]
[1731217251185,55.26750234,207.55,207.47,32.62980234]
[1731217251416,55.26750234,207.55,207.48,32.62980234]
[1731217251703,22.6377,207.55,207.49,32.62980234]
[1731217252007,6.0704,207.6,207.54,32.62980234]
[1731217252309,6.0704,207.6,207.58,32.62980234]
[1731217253600,6.0704,207.6,207.59,32.62980234]
[1731217254207,6.0704,207.65,207.59,32.62980234]
[1731217254386,6.0704,207.65,207.61,32.62980234]
[1731217255287,6.0704,207.65,207.6,32.62980234]
[1731217256805,32.62980234,207.62,207.48,3.13391017]
[1731217257007,32.62980234,207.59,207.52,32.62980234]
[1731217257303,32.62980234,207.6,207.53,32.62980234]
[1731217257695,32.62980234,207.58,207.51,32.62980234]
[1731217258104,0.1,207.63,207.51,32.62980234]
[1731217258105,32.62980234,207.59,207.51,32.62980234]
[1731217258408,6.0704,207.65,207.5,32.62980234]
[1731217258409,32.62980234,207.58,207.5,32.62980234]
[1731217258788,32.62980234,207.56,207.49,32.62980234]
[1731217259519,32.62980234,207.57,207.49,32.62980234]
[1731217259699,32.62980234,207.56,207.48,32.62980234]
[1731217259899,32.62980234,207.56,207.49,32.62980234]
[1731217260292,6.0243,207.55,207.49,32.62980234]
[1731217260496,38.65410234,207.55,207.47,32.62980234]
[1731217261004,32.62980234,207.53,207.46,32.62980234]
[1731217261807,32.62980234,207.54,207.42,5.53190715]
[1731217262116,32.62980234,207.53,207.46,32.62980234]
[1731217262485,32.62980234,207.54,207.46,32.62980234]
[1731217262895,32.62980234,207.52,207.45,32.62980234]
[1731217263101,6.0243,207.55,207.38,14.7407]
[1731217263102,32.62980234,207.51,207.44,32.62980234]
[1731217263336,32.62980234,207.52,207.45,32.62980234]
[1731217263492,38.65410234,207.55,207.47,32.62980234]
[1731217263689,13.33626166,207.54,207.48,32.62980234]
[1731217263894,6.0243,207.55,207.48,32.62980234]
[1731217264099,38.65410234,207.55,207.47,32.62980234]
[1731217264314,32.62980234,207.54,207.47,32.62980234]
[1731217267621,6.0243,207.55,207.47,32.62980234]
[1731217267914,6.0243,207.55,207.49,32.62980234]
[1731217268295,365.52,207.67,207.4,32.62980234]
[1731217268296,32.62980234,207.61,207.53,32.62980234]
[1731217268611,55.62360234,207.63,207.55,32.62980234]
[1731217269202,32.62980234,207.61,207.53,32.62980234]
[1731217270096,32.62980234,207.61,207.51,32.62980234]
[1731217270314,32.62980234,207.59,207.51,32.62980234]
[1731217271917,32.62980234,207.57,207.49,32.62980234]
[1731217272095,32.62980234,207.59,207.51,32.62980234]
[1731217272300,22.9938,207.63,207.48,3.01261614]
[1731217272301,32.62980234,207.55,207.48,3.01261614]
[1731217272500,32.62980234,207.55,207.47,32.62980234]
[1731217273197,32.62980234,207.57,207.49,32.62980234]
[1731217274119,32.62980234,207.53,207.47,32.62980234]
[1731217275419,32.62980234,207.53,207.45,32.62980234]
[1731217276123,32.62980234,207.51,207.43,32.62980234]
[1731217277413,32.62980234,207.49,207.41,32.62980234]
[1731217278120,32.62980234,207.48,207.4,32.62980234]
[1731217278421,32.62980234,207.47,207.4,32.62980234]
[1731217280020,23.0385,207.54,207.4,32.62980234]
[1731217280202,32.62980234,207.51,207.43,32.62980234]
[1731217280399,32.62980234,207.5,207.42,32.62980234]
[1731217280604,32.62980234,207.48,207.41,32.62980234]
[1731217281504,32.62980234,207.44,207.36,32.62980234]
[1731217281704,38.92320234,207.45,207.37,32.62980234]
[1731217281902,6.2934,207.45,207.4,32.62980234]
[1731217282196,6.2934,207.45,207.31,0.25465425]
[1731217282197,6.2934,207.45,207.41,32.62980234]
[1731217282515,6.2934,207.45,207.39,32.62980234]
[1731217282900,38.92320234,207.45,207.38,32.62980234]
[1731217283096,47.83290234,207.44,207.36,32.62980234]
[1731217283300,32.62980234,207.43,207.36,32.62980234]
[1731217283507,32.62980234,207.42,207.35,32.62980234]
[1731217283911,32.62980234,207.41,207.34,32.62980234]
[1731217284413,32.62980234,207.4,207.33,32.62980234]
[1731217284804,32.62980234,207.41,207.34,32.62980234]
[1731217285317,32.62980234,207.4,207.33,32.62980234]
[1731217285695,32.62980234,207.38,207.3,32.62980234]
[1731217285906,32.62980234,207.38,207.31,32.62980234]
[1731217286215,32.62980234,207.39,207.31,32.62980234]
[1731217286430,32.62980234,207.38,207.31,32.62980234]
[1731217286921,15.2031,207.44,207.36,32.62980234]
[1731217287102,32.62980234,207.39,207.32,32.62980234]
[1731217287297,32.62980234,207.37,207.23,19.90345764]
[1731217287728,32.62980234,207.37,207.23,26.22770676]
[1731217288021,32.62980234,207.37,207.23,29.2776634]
[1731217288714,32.62980234,207.37,207.24,5.16275764]
[1731217288908,32.62980234,207.37,207.29,32.62980234]
[1731217289108,21.4965,207.36,207.31,32.62980234]
[1731217289309,21.4965,207.36,207.29,32.62980234]
[1731217289511,54.12630234,207.36,207.28,32.62980234]
[1731217289723,21.4965,207.36,207.29,32.62980234]
[1731217289924,54.12630234,207.36,207.28,32.62980234]
[1731217291222,21.4965,207.36,207.32,32.62980234]
[1731217291523,21.4965,207.36,207.29,32.62980234]
[1731217293017,32.62980234,207.34,207.26,32.62980234]
[1731217293419,32.62980234,207.33,207.25,32.62980234]
[1731217293822,32.62980234,207.33,207.26,32.62980234]
[1731217294624,32.62980234,207.34,207.27,32.62980234]
[1731217295007,32.62980234,207.35,207.27,32.62980234]
[1731217295421,32.62980234,207.35,207.28,32.62980234]
[1731217296211,32.62980234,207.35,207.19,1.6283]
[1731217296212,6.6504,207.28,207.09,0.1]
[1731217296423,32.62980234,207.27,207.19,32.62980234]
[1731217298012,6.6504,207.28,207.21,32.62980234]
[1731217298316,6.6504,207.28,207.25,32.62980234]
[1731217298517,6.6504,207.28,207.27,32.62980234]
[1731217299421,6.6504,207.33,207.27,32.62980234]
[1731217299616,6.6504,207.33,207.28,32.62980234]
[1731217299838,32.62980234,207.31,207.17,14.7407]
[1731217300012,32.62980234,207.3,207.23,32.62980234]
[1731217300218,6.6504,207.33,207.26,32.62980234]
[1731217300432,6.6504,207.33,207.27,32.62980234]
[1731217300631,6.6504,207.33,207.28,32.62980234]
[1731217300930,6.6504,207.33,207.3,32.62980234]
[1731217301134,6.6504,207.33,207.29,32.62980234]
[1731217301518,6.6504,207.33,207.31,32.62980234]
[1731217301831,6.6504,207.33,207.27,32.62980234]
[1731217302010,6.6504,207.33,207.17,27.53909949]
[1731217302011,6.6504,207.33,207.28,32.62980234]
[1731217302811,6.6504,207.33,207.29,32.62980234]
[1731217303234,6.6504,207.33,207.3,32.62980234]
[1731217303417,6.1853,207.39,207.32,32.62980234]
[1731217303617,6.1853,207.39,207.34,32.62980234]
[1731217303811,6.1853,207.39,207.35,32.62980234]
[1731217304435,6.1853,207.39,207.34,32.62980234]
[1731217304813,6.1853,207.39,207.35,32.62980234]
[1731217305133,32.62980234,207.38,207.31,32.62980234]
[1731217305627,6.1853,207.39,207.25,3.1147159]
[1731217305834,6.1853,207.39,207.25,0.1]
[1731217306028,6.1853,207.39,207.35,32.62980234]
[1731217306337,32.62980234,207.37,207.3,32.62980234]
[1731217306513,6.1853,207.39,207.28,32.62980234]
[1731217306831,32.62980234,207.36,207.28,32.62980234]
[1731217307036,32.62980234,207.36,207.29,32.62980234]
[1731217308132,32.62980234,207.36,207.28,32.62980234]
[1731217308358,32.62980234,207.35,207.27,32.62980234]
[1731217308636,32.62980234,207.33,207.26,32.62980234]
[1731217309026,22.6482,207.34,207.25,32.62980234]
[1731217309027,32.62980234,207.32,207.25,32.62980234]
[1731217309227,32.62980234,207.33,207.25,32.62980234]
[1731217311826,32.62980234,207.31,207.23,32.62980234]
[1731217312140,32.62980234,207.31,207.24,32.62980234]
[1731217312943,32.62980234,207.31,207.23,32.62980234]
[1731217314552,32.62980234,207.3,207.22,32.62980234]
[1731217315140,32.62980234,207.28,207.2,32.62980234]
[1731217315533,0.12549,207.32,207.19,32.62980234]
[1731217315534,32.62980234,207.27,207.19,32.62980234]
[1731217315730,32.62980234,207.21,207.13,32.62980234]
[1731217316629,32.62980234,207.2,207.13,32.62980234]
[1731217317325,32.62980234,207.21,207.13,32.62980234]
[1731217317728,22.0976,207.26,207.16,32.62980234]
[1731217317919,22.0976,207.26,207.2,32.62980234]
[1731217319144,32.62980234,207.24,207.16,32.62980234]
[1731217319323,54.72740234,207.26,207.18,32.62980234]
[1731217319929,22.0976,207.26,207.2,32.62980234]
[1731217320342,22.0976,207.24,207.1,3.0667398]
[1731217320545,22.0976,207.24,207.16,32.62980234]
[1731217320746,54.72740234,207.24,207.16,32.62980234]
[1731217320944,32.62980234,207.18,207.06,3.00676445]
[1731217321144,22.0976,207.24,207.03,0.1]
[1731217321442,32.62980234,207.18,207.1,32.62980234]
[1731217321843,32.62980234,207.16,207.08,32.62980234]
[1731217323137,32.62980234,207.16,207.01,3.17350625]
[1731217323138,6.3712,207.15,207.06,32.62980234]
[1731217323445,32.62980234,207.14,207.06,32.62980234]
[1731217324641,32.62980234,207.14,207.01,3.07350625]
[1731217324642,47.65490234,207.14,207.04,32.62980234]
[1731217325149,32.62980234,207.12,207.04,32.62980234]
[1731217326842,47.65490234,207.14,207.06,32.62980234]
[1731217327143,47.65490234,207.14,207.0,1891.8168331]
[1731217327144,15.0251,207.14,207.08,32.62980234]
[1731217327348,15.0251,207.14,207.1,32.62980234]
[1731217328041,6.3712,207.15,207.12,32.62980234]
[1731217328945,54.02610234,207.2,207.13,32.62980234]
[1731217329359,21.3963,207.2,207.13,32.62980234]
[1731217329653,54.02610234,207.2,207.13,32.62980234]
[1731217329830,32.62980234,207.19,207.12,32.62980234]
[1731217330038,32.62980234,207.18,207.11,32.62980234]
[1731217330740,32.62980234,207.18,207.1,32.62980234]
[1731217331461,32.62980234,207.18,207.11,32.62980234]
[1731217332046,54.02610234,207.2,207.13,32.62980234]
[1731217332762,21.3963,207.2,207.15,32.62980234]
[1731217332946,21.3963,207.2,207.14,32.62980234]
[1731217333943,21.3963,207.2,207.15,32.62980234]
[1731217334652,21.3963,207.2,207.16,32.62980234]
[1731217334855,21.3963,207.2,207.17,32.62980234]
[1731217335049,21.3963,207.2,207.16,32.62980234]
[1731217335357,21.3963,207.2,207.1,32.62980234]
[1731217335358,21.3963,207.2,207.17,32.62980234]
[1731217335562,22.4628,207.25,207.19,32.62980234]
[1731217335744,22.4628,207.25,207.21,32.62980234]
[1731217336257,22.4628,207.25,207.19,32.62980234]
[1731217336638,22.4628,207.25,207.21,32.62980234]
[1731217337458,22.4628,207.25,207.19,32.62980234]
[1731217337662,55.09260234,207.25,207.18,32.62980234]
[1731217337839,22.4628,207.25,207.2,32.62980234]
[1731217338656,22.4628,207.25,207.21,32.62980234]
[1731217338959,22.4628,207.25,207.22,32.62980234]
[1731217339160,0.1,207.37,207.24,32.62980234]
[1731217339161,22.4628,207.31,207.24,32.62980234]
[1731217339360,22.4628,207.31,207.26,32.62980234]
[1731217339669,22.4628,207.31,207.2,32.62980234]
[1731217339670,22.4628,207.31,207.2,35.72916972]
[1731217339962,22.4628,207.31,207.27,32.62980234]
[1731217340255,22.4628,207.31,207.26,32.62980234]
[1731217340636,32.62980234,207.29,207.23,32.62980234]
[1731217340838,55.09260234,207.31,207.24,32.62980234]
[1731217341268,22.4628,207.31,207.27,32.62980234]
[1731217341961,22.4628,207.31,207.25,32.62980234]
[1731217343056,22.4628,207.31,207.26,32.62980234]
[1731217343249,22.4628,207.31,207.29,32.62980234]
[1731217343564,15.7001,207.36,207.3,32.62980234]
[1731217343865,15.7001,207.36,207.34,32.62980234]
[1731217344042,15.7001,207.36,207.33,32.62980234]
[1731217344643,15.7001,207.36,207.34,32.62980234]
[1731217344845,15.7001,207.36,207.32,32.62980234]
[1731217346160,15.7001,207.36,207.34,32.62980234]
[1731217346366,15.7001,207.43,207.35,32.62980234]
[1731217346666,15.7001,207.43,207.37,32.62980234]
[1731217348051,15.7001,207.43,207.38,32.62980234]
[1731217348772,6.3166,207.44,207.39,32.62980234]
[1731217348951,6.3166,207.59,207.43,65.25960468]
[1731217349147,6.3166,207.59,207.4,32.62980234]
[1731217349148,6.3166,207.59,207.53,32.62980234]
[1731217349351,32.62980234,207.61,207.55,32.62980234]
[1731217349650,32.62980234,207.62,207.56,17.79617968]
[1731217349856,32.62980234,207.62,207.56,30.50288934]
[1731217350166,32.62980234,207.64,207.56,30.50288934]
[1731217350673,54.64650234,207.7,207.56,30.50288934]
[1731217350674,32.62980234,207.59,207.56,30.50288934]
[1731217350852,32.62980234,207.61,207.56,12.70670966]
[1731217351048,32.62980234,207.62,207.56,12.70670966]
[1731217351361,32.62980234,207.62,207.55,32.62980234]
[1731217352057,32.62980234,207.62,207.53,32.62980234]
[1731217352258,32.62980234,207.58,207.51,40.72430152]
[1731217352568,32.62980234,207.55,207.51,8.09449918]
[1731217352762,32.62980234,207.52,207.48,8.49707538]
[1731217352961,32.62980234,207.53,207.48,8.49707538]
[1731217353155,29.36199528,207.53,207.48,8.49707538]
[1731217353471,32.62980234,207.6,207.48,8.49707538]
[1731217353472,32.62980234,207.51,207.48,11.5732897]
[1731217353668,32.62980234,207.5,207.48,11.5732897]
[1731217353875,15.7001,207.55,207.39,38.63086128]
[1731217354172,32.62980234,207.51,207.46,8.02763093]
[1731217354557,32.62980234,207.5,207.43,0.1]
[1731217354772,32.62980234,207.49,207.43,0.1]
[1731217354962,32.62980234,207.49,207.43,7.54785759]
[1731217355475,32.62980234,207.48,207.43,7.44785759]
[1731217355657,32.62980234,207.48,207.44,7.44785759]
[1731217355858,32.62980234,207.47,207.44,5.3001817]
[1731217356164,32.62980234,207.48,207.41,32.72980234]
[1731217356366,32.62980234,207.51,207.43,32.62980234]
[1731217356553,32.62980234,207.49,207.44,7.29274766]
[1731217357079,32.62980234,207.48,207.44,7.29274766]
[1731217357265,32.62980234,207.47,207.4,32.62980234]
[1731217357476,32.62980234,207.47,207.4,39.92255]
[1731217357772,32.62980234,207.48,207.41,32.62980234]
[1731217357957,32.62980234,207.47,207.41,7.29274766]
[1731217358356,32.62980234,207.48,207.41,7.29274766]
[1731217358554,32.62980234,207.46,207.41,7.29274766]
[1731217358858,32.62980234,207.45,207.37,39.92255]
[1731217359171,0.1,207.51,207.41,0.1]
[1731217359371,0.1,207.51,207.42,7.29274766]
[1731217359673,0.1,207.53,207.42,7.29274766]
[1731217359851,32.62980234,207.47,207.42,7.29274766]
[1731217360255,32.62980234,207.48,207.42,7.29274766]
[1731217360478,32.62980234,207.5,207.43,32.62980234]
[1731217360765,15.8001,207.55,207.44,32.62980234]
[1731217360974,32.62980234,207.5,207.43,39.92255]
[1731217362251,32.62980234,207.48,207.43,7.29274766]
[1731217362452,32.62980234,207.46,207.39,32.72980234]
[1731217362662,32.62980234,207.46,207.39,39.92255]
[1731217362973,0.1,207.54,207.41,0.1]
[1731217363164,15.7001,207.55,207.41,0.1]
[1731217363165,32.62980234,207.46,207.41,7.29274766]
[1731217363373,32.62980234,207.43,207.41,7.29274766]
[1731217364171,32.62980234,207.42,207.41,7.29274766]
[1731217364976,32.62980234,207.5,207.41,7.29274766]
[1731217364977,32.62980234,207.44,207.41,7.29274766]
[1731217365472,32.62980234,207.46,207.41,7.29274766]
[1731217365679,32.62980234,207.44,207.41,7.29274766]
[1731217366063,32.62980234,207.45,207.41,7.29274766]
[1731217366987,32.62980234,207.43,207.41,7.29274766]
[1731217367380,32.62980234,207.43,207.35,6.93389718]
[1731217367560,32.62980234,207.38,207.35,6.93389718]
[1731217368457,32.62980234,207.37,207.35,6.93389718]
[1731217369081,32.62980234,207.39,207.35,6.93389718]
[1731217369373,32.62980234,207.38,207.35,6.93389718]
[1731217369579,6.3739,207.48,207.36,6.16152621]
[1731217369771,32.62980234,207.44,207.37,7.03389718]
[1731217369971,32.62980234,207.45,207.38,32.62980234]
[1731217370283,32.62980234,207.45,207.39,7.03389718]
[1731217370455,32.62980234,207.44,207.39,7.03389718]
[1731217370661,32.62980234,207.45,207.39,7.03389718]
[1731217371483,32.62980234,207.46,207.39,7.03389718]
[1731217371863,0.1,208.12,207.4,1.5283]
[1731217372182,32.62980234,208.47,208.11,0.1]
[1731217372384,32.62980234,208.36,208.13,23.20912821]
[1731217372693,0.1,208.3,208.09,0.1]
[1731217372985,0.1,208.33,208.1,0.96021778]
[1731217373186,0.1,208.28,208.1,0.96021778]
[1731217373392,0.1,208.31,208.07,0.1]
[1731217373560,32.62980234,208.19,208.1,32.62980234]
[1731217373980,32.62980234,208.15,208.06,0.96043671]
[1731217374261,32.62980234,208.2,208.0,32.62980234]
[1731217374262,32.62980234,208.09,208.0,32.62980234]
[1731217374577,32.62980234,208.18,208.08,32.62980234]
[1731217374885,0.1,208.24,208.05,0.1]
[1731217374886,32.62980234,208.2,208.11,32.62980234]
[1731217375070,32.62980234,208.17,208.09,0.96057764]
[1731217375473,32.62980234,208.17,208.09,7.81548266]
[1731217375676,32.62980234,208.21,208.12,32.62980234]
[1731217375985,32.62980234,208.17,208.13,0.9602653]
[1731217376163,32.62980234,208.21,208.13,0.9602653]
[1731217376369,32.62980234,208.19,208.13,0.9602653]
[1731217376566,0.1,208.27,208.11,0.96031288]
[1731217376770,32.62980234,208.18,208.11,0.96031288]
[1731217376983,39.00370234,208.3,208.06,6.20490502]
[1731217376984,32.62980234,208.12,208.06,6.20490502]
[1731217377286,32.62980234,208.11,208.07,0.9608037]
[1731217377461,32.62980234,208.09,208.07,7.16570872]
[1731217377662,32.62980234,208.09,208.01,0.96070684]
[1731217378070,32.62980234,208.04,208.01,0.96070684]
[1731217378265,32.62980234,208.04,207.97,0.1]
[1731217378469,32.62980234,208.03,207.98,7.16585873]
[1731217378668,32.62980234,208.03,207.99,0.1]
[1731217378969,32.62980234,208.01,207.93,5.79087585]
[1731217379170,32.62980234,208.02,207.93,6.75193443]
[1731217379366,32.62980234,208.02,207.94,5.79087585]
[1731217379585,32.62980234,208.02,207.95,0.96104907]
[1731217379766,32.62980234,208.02,207.96,5.79087585]
[1731217379964,32.62980234,208.0,207.96,5.79087585]
[1731217380164,32.62980234,207.97,207.95,0.96104907]
[1731217380370,32.62980234,207.97,207.89,6.75205564]
[1731217380572,32.62980234,207.95,207.89,6.75205564]
[1731217380772,32.62980234,207.97,207.89,39.38185798]